[Event "MCR rapid mládeže 2023 U16"]
[Site "Harachov, Czech Republic"]
[Date "2023.09.09"]
[Round "3.34"]
[White "Dlouhy, Martin"]
[Black "Zeman, Jonas"]
[Result "1-0"]
[TimeControl "20min+5s/move"]
[WhiteElo "1193"]
[BlackElo "1130"]

1. d4 {[%clk 00:20:07]} {[%emt 00:00:02]} Nf6 {[%clk 00:17:59]} {[%emt
00:02:11]} 2. c4 {[%clk 00:20:11]} {[%emt 00:00:02]} e6 {[%clk 00:18:00]}
{[%emt 00:00:04]} 3. Nc3 {[%clk 00:20:12]} {[%emt 00:00:03]} Bb4 {[%clk
00:18:02]} {[%emt 00:00:04]} 4. Bg5 {[%clk 00:20:10]} {[%emt 00:00:06]} h6
{[%clk 00:17:34]} {[%emt 00:00:34]} 5. Bh4 {[%clk 00:20:14]} g5 {[%clk
00:17:23]} {[%emt 00:00:16]} 6. Bg3 {[%clk 00:20:17]} {[%emt 00:00:01]} d5
{[%clk 00:17:06]} {[%emt 00:00:23]} 7. cxd5 {[%clk 00:20:18]} {[%emt 00:00:04]}
Nxd5 {[%clk 00:17:03]} {[%emt 00:00:08]} 8. Qa4+ {[%clk 00:20:17]} {[%emt
00:00:07]} Nc6 {[%clk 00:17:00]} {[%emt 00:00:08]} 9. Qc2 {[%clk 00:20:05]}
{[%emt 00:00:15]} Nxd4 {[%clk 00:15:32]} {[%emt 00:01:33]} 10. Qd3 {[%clk
00:19:53]} {[%emt 00:00:18]} c5 {[%clk 00:14:55]} {[%emt 00:00:42]} 11. Be5
{[%clk 00:19:51]} {[%emt 00:00:07]} Nf4 {[%clk 00:12:54]} {[%emt 00:02:06]} 12.
Qe4 {[%clk 00:19:32]} {[%emt 00:00:21]} Rg8 {[%clk 00:12:27]} {[%emt 00:00:35]}
13. e3 {[%clk 00:19:30]} {[%emt 00:00:08]} f5 {[%clk 00:11:46]} {[%emt
00:00:46]} 14. Qb1 {[%clk 00:19:21]} {[%emt 00:00:11]} Ng6 {[%clk 00:11:05]}
{[%emt 00:00:48]} 15. exd4 {[%clk 00:19:20]} {[%emt 00:00:06]} cxd4 {[%clk
00:10:56]} {[%emt 00:00:15]} 16. Bxd4 {[%clk 00:18:40]} {[%emt 00:00:45]} Qxd4
{[%clk 00:10:52]} {[%emt 00:00:08]} 17. Bb5+ {[%clk 00:18:29]} {[%emt
00:00:17]} Kf7 {[%clk 00:10:42]} {[%emt 00:00:13]} 18. Qc2 {[%clk 00:18:18]}
{[%emt 00:00:17]} Nf4 {[%clk 00:10:02]} {[%emt 00:00:45]} 19. Nf3 {[%clk
00:18:09]} {[%emt 00:00:15]} Bxc3+ {[%clk 00:08:10]} {[%emt 00:01:57]} 20. bxc3
{[%clk 00:17:59]} {[%emt 00:00:15]} Nxg2+ {[%clk 00:07:20]} {[%emt 00:00:54]}
21. Kf1 {[%clk 00:17:55]} {[%emt 00:00:09]} Qc5 {[%clk 00:07:14]} {[%emt
00:00:11]} 22. Bc4 {[%clk 00:17:52]} {[%emt 00:00:09]} Nf4 {[%clk 00:07:04]}
{[%emt 00:00:15]} 23. Re1 {[%clk 00:16:57]} {[%emt 00:00:59]} Qxc4+ {[%clk
00:06:28]} {[%emt 00:00:41]} 24. Kg1 {[%clk 00:16:43]} {[%emt 00:00:19]} Qd3
{[%clk 00:06:05]} {[%emt 00:00:28]} 25. Ne5+ {[%emt 00:00:38]} Kf6 {[%clk
00:05:34]} {[%emt 00:00:01]} 26. Nxd3 {[%clk 00:16:49]} {[%emt 00:00:02]} Nxd3
{[%clk 00:05:22]} {[%emt 00:00:16]} 27. Qxd3 {[%clk 00:16:52]} {[%emt
00:00:02]} b6 {[%clk 00:05:21]} {[%emt 00:00:07]} 28. Kf1 {[%clk 00:16:35]}
{[%emt 00:00:22]} Bb7 {[%clk 00:05:17]} {[%emt 00:00:08]} 29. Rg1 {[%clk
00:16:36]} {[%emt 00:00:04]} Rgd8 {[%clk 00:04:53]} {[%emt 00:00:30]} 30. Qe3
{[%clk 00:16:19]} {[%emt 00:00:22]} Rd6 {[%clk 00:04:31]} {[%emt 00:00:26]} 31.
f3 {[%clk 00:15:53]} {[%emt 00:00:31]} Rad8 {[%clk 00:04:19]} {[%emt 00:00:17]}
32. Kf2 {[%clk 00:15:51]} {[%emt 00:00:08]} Ba6 {[%clk 00:04:10]} {[%emt
00:00:14]} 33. c4 {[%clk 00:15:42]} {[%emt 00:00:13]} Bxc4 {[%clk 00:04:01]}
{[%emt 00:00:14]} 34. Qc3+ {[%clk 00:15:45]} {[%emt 00:00:03]} Rd4 {[%clk
00:04:02]} {[%emt 00:00:04]} 35. Rd1 {[%clk 00:15:37]} {[%emt 00:02:18]} e5
{[%clk 00:03:17]} {[%emt 00:01:19]} 36. Rxd4 {[%clk 00:15:39]} {[%emt
00:00:02]} Rxd4 {[%clk 00:03:19]} {[%emt 00:00:03]} 37. Re1 {[%clk 00:15:24]}
{[%emt 00:00:19]} Bxa2 {[%clk 00:03:06]} {[%emt 00:00:19]} 38. Qc6+ {[%clk
00:15:07]} {[%emt 00:00:22]} Be6 {[%clk 00:03:07]} {[%emt 00:00:04]} 39. Qc2
{[%clk 00:14:58]} {[%emt 00:00:14]} a5 {[%clk 00:02:34]} {[%emt 00:00:38]} 40.
Rd1 {[%clk 00:15:00]} {[%emt 00:00:03]} Rc4 {[%emt 00:00:51]} 41. Qd2 {[%clk
00:14:28]} {[%emt 00:00:02]} Rd4 {[%clk 00:02:12]} {[%emt 00:00:15]} 42. Qe2
{[%clk 00:14:15]} {[%emt 00:00:18]} Rb4 {[%clk 00:02:11]} {[%emt 00:00:07]} 43.
Rd6 {[%clk 00:14:06]} {[%emt 00:00:15]} f4 {[%clk 00:01:55]} {[%emt 00:00:20]}
44. Qa2 {[%clk 00:13:44]} {[%emt 00:00:26]} Kg7 {[%clk 00:01:20]} {[%emt
00:00:40]} 45. Qxe6 {[%clk 00:13:37]} {[%emt 00:00:12]} Rb1 {[%clk 00:01:21]}
{[%emt 00:00:04]} 46. Rd7+ {[%clk 00:13:39]} {[%emt 00:00:04]} Kf8 {[%clk
00:01:20]} {[%emt 00:00:06]} 47. Qf7# {[%emt 00:00:02]} 1-0

[Event "MCR rapid mládeže 2023 U16"]
[Site "Harachov, Czech Republic"]
[Date "2023.09.09"]
[Round "3.36"]
[White "Zelenka, Tomas"]
[Black "Hlavacek, Pavel"]
[Result "1-0"]
[TimeControl "20min+5s/move"]
[WhiteElo "1457"]
[BlackElo "1203"]

1. e4 {[%clk 00:20:08]} c5 {[%clk 00:20:10]} 2. d3 {[%clk 00:20:09]} {[%emt
00:00:04]} d6 {[%clk 00:20:12]} {[%emt 00:00:03]} 3. g3 {[%clk 00:20:12]}
{[%emt 00:00:02]} Nc6 {[%clk 00:20:16]} {[%emt 00:00:01]} 4. Bg2 {[%clk
00:20:16]} {[%emt 00:00:01]} g6 {[%clk 00:20:20]} {[%emt 00:00:01]} 5. f4
{[%clk 00:20:19]} {[%emt 00:00:02]} Bg7 {[%clk 00:20:21]} {[%emt 00:00:03]} 6.
Nf3 {[%clk 00:20:22]} {[%emt 00:00:02]} Bg4 {[%clk 00:20:11]} {[%emt 00:00:16]}
7. h3 {[%clk 00:20:12]} {[%emt 00:00:14]} Bxf3 {[%clk 00:20:14]} {[%emt
00:00:02]} 8. Bxf3 {[%clk 00:20:14]} {[%emt 00:00:03]} Nf6 {[%clk 00:20:13]}
{[%emt 00:00:06]} 9. O-O {[%clk 00:20:14]} {[%emt 00:00:05]} O-O {[%clk
00:20:16]} {[%emt 00:00:02]} 10. Nc3 {[%clk 00:20:07]} {[%emt 00:00:13]} Qb6
{[%clk 00:20:13]} {[%emt 00:00:08]} 11. Nd5 {[%clk 00:19:01]} {[%emt 00:01:11]}
Nxd5 {[%clk 00:20:08]} {[%emt 00:00:10]} 12. exd5 {[%clk 00:19:02]} {[%emt
00:00:04]} Nd4 {[%clk 00:20:11]} {[%emt 00:00:02]} 13. Bg4 {[%clk 00:18:43]}
{[%emt 00:00:21]} c4 {[%clk 00:19:56]} {[%emt 00:00:22]} 14. Kh1 {[%clk
00:17:45]} {[%emt 00:01:01]} f5 {[%clk 00:19:14]} {[%emt 00:00:50]} 15. Be2
{[%clk 00:17:35]} {[%emt 00:00:13]} Nxe2 {[%clk 00:19:03]} {[%emt 00:00:18]} 16.
Qxe2 {[%clk 00:17:37]} {[%emt 00:00:03]} cxd3 {[%clk 00:19:06]} {[%emt
00:00:02]} 17. Qxd3 {[%clk 00:17:31]} {[%emt 00:00:10]} Qd4 {[%clk 00:18:42]}
{[%emt 00:00:29]} 18. Qxd4 {[%clk 00:16:46]} {[%emt 00:00:51]} Bxd4 {[%clk
00:18:46]} {[%emt 00:00:01]} 19. c3 {[%clk 00:16:46]} {[%emt 00:00:05]} Bg7
{[%clk 00:18:49]} {[%emt 00:00:02]} 20. Be3 {[%clk 00:16:43]} {[%emt 00:00:06]}
b6 {[%clk 00:18:53]} {[%emt 00:00:03]} 21. Rfe1 {[%clk 00:16:37]} {[%emt
00:00:10]} Rac8 {[%clk 00:18:56]} {[%emt 00:00:03]} 22. Re2 {[%clk 00:16:27]}
{[%emt 00:00:13]} Rc4 {[%clk 00:18:58]} {[%emt 00:00:04]} 23. Rae1 {[%clk
00:16:23]} {[%emt 00:00:07]} Re4 {[%clk 00:18:59]} {[%emt 00:00:06]} 24. Bd2
{[%clk 00:16:10]} {[%emt 00:00:17]} Rxe2 {[%clk 00:18:42]} {[%emt 00:00:24]} 25.
Rxe2 {[%clk 00:16:13]} {[%emt 00:00:02]} Bf6 {[%clk 00:18:42]} {[%emt
00:00:05]} 26. g4 {[%clk 00:15:45]} {[%emt 00:00:33]} fxg4 {[%clk 00:18:32]}
{[%emt 00:00:15]} 27. hxg4 {[%clk 00:15:48]} {[%emt 00:00:02]} Bh4 {[%clk
00:18:20]} {[%emt 00:00:17]} 28. g5 {[%clk 00:15:37]} {[%emt 00:00:16]} Re8
{[%clk 00:18:09]} {[%emt 00:00:16]} 29. Kh2 {[%clk 00:15:21]} {[%emt 00:00:20]}
h6 {[%clk 00:16:48]} {[%emt 00:01:26]} 30. Kh3 {[%clk 00:15:22]} {[%emt
00:00:03]} hxg5 {[%clk 00:16:52]} {[%emt 00:00:02]} 31. fxg5 {[%clk 00:15:26]}
{[%emt 00:00:01]} Bxg5 {[%clk 00:16:54]} {[%emt 00:00:03]} 32. Bxg5 {[%clk
00:15:29]} {[%emt 00:00:02]} Rf8 {[%clk 00:16:53]} {[%emt 00:00:06]} 33. Rxe7
{[%clk 00:15:29]} {[%emt 00:00:05]} Rf3+ {[%clk 00:16:53]} {[%emt 00:00:05]} 34.
Kg4 {[%clk 00:15:30]} {[%emt 00:00:02]} Rf5 {[%clk 00:16:52]} {[%emt 00:00:08]}
35. Rxa7 {[%clk 00:15:15]} {[%emt 00:00:20]} Rxd5 {[%clk 00:16:44]} {[%emt
00:00:13]} 36. Bh6 {[%clk 00:14:36]} {[%emt 00:00:42]} Rd2 {[%clk 00:15:53]}
{[%emt 00:00:58]} 37. Bxd2 {[%clk 00:14:38]} {[%emt 00:00:03]} d5 {[%clk
00:15:54]} {[%emt 00:00:04]} 38. Bh6 {[%clk 00:14:38]} {[%emt 00:00:04]} d4
{[%clk 00:15:57]} {[%emt 00:00:03]} 39. Kg5 {[%clk 00:14:36]} {[%emt 00:00:04]}
d3 {[%clk 00:16:01]} {[%emt 00:00:04]} 40. Kf6 {[%clk 00:14:39]} {[%emt
00:00:01]} d2 {[%clk 00:15:37]} {[%emt 00:00:30]} 41. Bxd2 {[%clk 00:13:07]}
{[%emt 00:01:36]} g5 {[%clk 00:15:40]} {[%emt 00:00:03]} 42. Bxg5 {[%clk
00:12:57]} {[%emt 00:00:14]} b5 {[%clk 00:15:38]} {[%emt 00:00:08]} 43. Bh6
{[%clk 00:12:58]} {[%emt 00:00:03]} b4 {[%emt 00:00:09]} 44. Ra8+ {[%clk
00:12:57]} {[%emt 00:00:04]} Kh7 {[%clk 00:15:39]} {[%emt 00:00:03]} 45. Bg7
{[%clk 00:12:57]} {[%emt 00:00:01]} bxc3 {[%emt 00:00:43]} 1-0

[Event "MCR rapid mládeže 2023 U16"]
[Site "Harachov, Czech Republic"]
[Date "2023.09.09"]
[Round "3.37"]
[White "Zidkova, Agnes"]
[Black "Najdkova, Laura"]
[Result "1/2-1/2"]
[TimeControl "20min+5s/move"]
[WhiteElo "1045"]
[BlackElo "1331"]

1. e4 {[%clk 00:20:08]} {[%emt 00:00:01]} e5 {[%clk 00:20:09]} 2. d4 {[%clk
00:20:12]} {[%emt 00:00:02]} exd4 {[%clk 00:20:06]} {[%emt 00:00:09]} 3. Qxd4
{[%clk 00:20:14]} {[%emt 00:00:02]} Nc6 {[%clk 00:20:06]} {[%emt 00:00:05]} 4.
Qe3 {[%clk 00:20:18]} {[%emt 00:00:02]} Bb4+ {[%clk 00:19:50]} {[%emt
00:00:20]} 5. Nc3 {[%clk 00:20:02]} {[%emt 00:00:22]} d6 {[%clk 00:19:44]}
{[%emt 00:00:11]} 6. Bd2 {[%clk 00:20:03]} {[%emt 00:00:03]} Nf6 {[%clk
00:19:35]} {[%emt 00:00:14]} 7. O-O-O {[%clk 00:20:05]} {[%emt 00:00:03]} Be6
{[%clk 00:19:23]} {[%emt 00:00:17]} 8. a3 {[%clk 00:19:58]} {[%emt 00:00:12]}
Ba5 {[%clk 00:19:21]} {[%emt 00:00:07]} 9. Qg3 {[%clk 00:19:25]} {[%emt
00:00:37]} Bxc3 {[%clk 00:17:01]} {[%emt 00:02:26]} 10. Bxc3 {[%clk 00:18:48]}
{[%emt 00:00:42]} O-O {[%clk 00:17:03]} {[%emt 00:00:04]} 11. Be2 {[%clk
00:16:58]} {[%emt 00:01:55]} Qe7 {[%clk 00:14:48]} {[%emt 00:02:20]} 12. Nh3
{[%clk 00:14:06]} {[%emt 00:02:57]} Ne5 {[%clk 00:11:37]} {[%emt 00:03:15]} 13.
f4 {[%clk 00:10:03]} {[%emt 00:04:05]} Nxe4 {[%clk 00:10:39]} {[%emt 00:01:05]}
14. Qe3 {[%clk 00:08:09]} {[%emt 00:01:57]} Nxc3 {[%clk 00:10:42]} {[%emt
00:00:06]} 15. Qxc3 {[%clk 00:07:50]} {[%emt 00:00:22]} Nc6 {[%clk 00:08:41]}
{[%emt 00:02:07]} 16. Rhe1 {[%clk 00:06:42]} {[%emt 00:01:13]} Qh4 {[%clk
00:07:53]} {[%emt 00:00:50]} 17. Rd3 {[%clk 00:05:27]} {[%emt 00:01:21]} Bxh3
{[%clk 00:06:36]} {[%emt 00:01:23]} 18. Rxh3 {[%clk 00:05:18]} {[%emt
00:00:13]} Qxf4+ {[%clk 00:06:37]} {[%emt 00:00:05]} 19. Kb1 {[%clk 00:05:05]}
{[%emt 00:00:18]} Rfe8 {[%clk 00:04:10]} {[%emt 00:02:32]} 20. Rg3 {[%clk
00:04:05]} {[%emt 00:01:05]} Nd4 {[%clk 00:03:36]} {[%emt 00:00:39]} 21. Rg4
{[%clk 00:03:16]} {[%emt 00:00:55]} Qf5 {[%clk 00:00:09]} {[%emt 00:03:31]} 22.
Qxd4 {[%clk 00:02:59]} {[%emt 00:00:21]} f6 {[%clk 00:00:13]} 23. Qf4 {[%clk
00:02:29]} {[%emt 00:00:35]} Qd5 {[%clk 00:00:12]} {[%emt 00:00:07]} 24. Qf3
{[%clk 00:02:05]} {[%emt 00:00:29]} Qf7 {[%clk 00:00:16]} {[%emt 00:00:02]} 25.
Re4 {[%clk 00:01:56]} {[%emt 00:00:14]} Rxe4 {[%clk 00:00:19]} {[%emt
00:00:02]} 26. Qxe4 {[%clk 00:01:59]} {[%emt 00:00:02]} Re8 {[%clk 00:00:22]}
{[%emt 00:00:02]} 27. Qf3 {[%clk 00:01:57]} {[%emt 00:00:07]} Qg6 {[%clk
00:00:26]} {[%emt 00:00:01]} 28. g3 {[%clk 00:01:54]} {[%emt 00:00:09]} b6
{[%clk 00:00:29]} {[%emt 00:00:02]} 29. Qd3 {[%clk 00:01:55]} {[%emt 00:00:03]}
Qxd3 {[%clk 00:00:31]} {[%emt 00:00:03]} 30. cxd3 {[%clk 00:01:56]} {[%emt
00:00:04]} c5 {[%clk 00:00:35]} {[%emt 00:00:01]} 31. Kc1 {[%clk 00:01:57]}
{[%emt 00:00:05]} Kf7 {[%clk 00:00:38]} {[%emt 00:00:01]} 32. Kd2 {[%clk
00:02:00]} {[%emt 00:00:02]} Ke6 {[%clk 00:00:40]} {[%emt 00:00:03]} 33. Bg4+
{[%clk 00:02:02]} {[%emt 00:00:03]} Kf7 {[%clk 00:00:41]} {[%emt 00:00:04]} 34.
Rf1 {[%clk 00:01:30]} {[%emt 00:00:32]} 1/2-1/2

[Event "MCR rapid mládeže 2023 U16"]
[Site "Harachov, Czech Republic"]
[Date "2023.09.09"]
[Round "3.38"]
[White "Hamernikova, Iris"]
[Black "Tykalova, Barbora"]
[Result "1-0"]
[TimeControl "20min+5s/move"]
[WhiteElo "1387"]
[BlackElo "1121"]

1. e4 {[%clk 00:20:09]} {[%emt 00:06:33]} e5 {[%clk 00:20:05]} {[%emt
00:00:05]} 2. Nf3 {[%clk 00:20:12]} {[%emt 00:00:01]} Nc6 {[%clk 00:20:03]}
{[%emt 00:00:08]} 3. Nc3 {[%clk 00:20:14]} {[%emt 00:00:02]} Nf6 {[%clk
00:20:00]} {[%emt 00:00:08]} 4. Bb5 {[%clk 00:20:16]} {[%emt 00:00:04]} Bb4
{[%clk 00:19:53]} {[%emt 00:00:12]} 5. O-O {[%clk 00:20:18]} {[%emt 00:00:03]}
O-O {[%clk 00:19:48]} {[%emt 00:00:10]} 6. d3 {[%clk 00:20:22]} {[%emt
00:00:01]} d6 {[%clk 00:19:44]} {[%emt 00:00:10]} 7. Bg5 {[%clk 00:20:23]}
{[%emt 00:00:03]} Bxc3 {[%clk 00:19:39]} {[%emt 00:00:09]} 8. bxc3 {[%clk
00:20:27]} {[%emt 00:00:02]} Qe7 {[%clk 00:19:17]} {[%emt 00:00:26]} 9. Bc4
{[%clk 00:20:24]} {[%emt 00:00:09]} Nd8 {[%clk 00:19:14]} {[%emt 00:00:07]} 10.
Rb1 {[%clk 00:20:24]} {[%emt 00:00:05]} Ne6 {[%clk 00:18:44]} {[%emt 00:00:35]}
11. Bh4 {[%clk 00:20:17]} {[%emt 00:00:11]} Nf4 {[%clk 00:17:54]} {[%emt
00:00:56]} 12. h3 {[%clk 00:19:59]} {[%emt 00:00:24]} Ng6 {[%clk 00:17:04]}
{[%emt 00:00:53]} 13. Bg5 {[%clk 00:19:56]} {[%emt 00:00:08]} h6 {[%clk
00:16:53]} {[%emt 00:00:16]} 14. Be3 {[%clk 00:19:55]} {[%emt 00:00:06]} Nh5
{[%clk 00:16:38]} {[%emt 00:00:20]} 15. Ng5 {[%clk 00:19:19]} {[%emt 00:00:41]}
Nhf4 {[%clk 00:15:52]} {[%emt 00:00:50]} 16. Nf3 {[%clk 00:19:14]} {[%emt
00:00:11]} b6 {[%clk 00:15:12]} {[%emt 00:00:46]} 17. Re1 {[%clk 00:18:25]}
{[%emt 00:00:52]} Be6 {[%clk 00:14:55]} {[%emt 00:00:23]} 18. Bb3 {[%clk
00:18:17]} {[%emt 00:00:13]} c6 {[%clk 00:13:57]} {[%emt 00:01:04]} 19. d4
{[%clk 00:18:15]} {[%emt 00:00:07]} Rad8 {[%clk 00:13:41]} {[%emt 00:00:19]} 20.
Qc1 {[%clk 00:17:53]} {[%emt 00:00:16]} d5 {[%clk 00:12:09]} {[%emt 00:01:50]}
21. exd5 {[%clk 00:17:46]} {[%emt 00:00:12]} Bxd5 {[%clk 00:11:54]} {[%emt
00:00:19]} 22. Bxd5 {[%clk 00:17:49]} {[%emt 00:00:04]} Nxd5 {[%clk 00:11:32]}
{[%emt 00:00:26]} 23. dxe5 {[%clk 00:17:27]} {[%emt 00:00:27]} Nxc3 {[%clk
00:11:07]} {[%emt 00:00:30]} 24. Rb3 {[%clk 00:17:24]} {[%emt 00:00:04]} Nd5
{[%clk 00:11:03]} {[%emt 00:00:12]} 25. Qb2 {[%clk 00:16:38]} {[%emt 00:00:52]}
Nxe3 {[%clk 00:10:53]} {[%emt 00:00:15]} 26. Rbxe3 {[%clk 00:16:41]} {[%emt
00:00:02]} Qe6 {[%clk 00:09:21]} {[%emt 00:01:36]} 27. Nd4 {[%clk 00:16:18]}
{[%emt 00:00:27]} Qd7 {[%clk 00:08:52]} {[%emt 00:00:31]} 28. Rd3 {[%clk
00:16:14]} {[%emt 00:00:13]} Qc7 {[%clk 00:07:54]} {[%emt 00:01:01]} 29. e6
{[%clk 00:16:06]} {[%emt 00:00:17]} f6 {[%clk 00:07:18]} {[%emt 00:00:40]} 30.
Qb3 {[%clk 00:15:49]} {[%emt 00:00:22]} Kh8 {[%clk 00:07:09]} {[%emt 00:00:13]}
31. Nf5 {[%clk 00:15:36]} {[%emt 00:00:18]} Rxd3 {[%clk 00:06:31]} {[%emt
00:00:44]} 32. Qxd3 {[%clk 00:15:39]} {[%emt 00:00:02]} Ne5 {[%clk 00:05:33]}
{[%emt 00:01:02]} 33. Qg3 {[%clk 00:15:16]} {[%emt 00:00:26]} Re8 {[%clk
00:05:03]} {[%emt 00:00:35]} 34. e7 {[%clk 00:15:02]} {[%emt 00:00:22]} Qd7
{[%clk 00:04:23]} {[%emt 00:00:44]} 35. Qxg7# {[%clk 00:14:55]} {[%emt
00:00:13]} 1-0

[Event "MCR rapid mládeže 2023 U16"]
[Site "Harachov, Czech Republic"]
[Date "2023.09.09"]
[Round "3.41"]
[White "Sengrova, Zofie"]
[Black "Tarielasvili, Kira"]
[Result "1/2-1/2"]
[TimeControl "20min+5s/move"]
[WhiteElo "1124"]
[BlackElo "1228"]

1. e4 {[%clk 00:20:08]} {[%emt 00:26:18]} e5 {[%clk 00:20:09]} {[%emt
00:00:02]} 2. Nf3 {[%clk 00:20:01]} {[%emt 00:00:11]} Nc6 {[%clk 00:19:35]}
{[%emt 00:00:40]} 3. Nc3 {[%clk 00:20:01]} {[%emt 00:00:05]} Nf6 {[%clk
00:19:30]} {[%emt 00:00:10]} 4. Bc4 {[%clk 00:19:59]} {[%emt 00:00:05]} Bb4
{[%clk 00:19:27]} {[%emt 00:00:07]} 5. Ng5 {[%clk 00:19:54]} {[%emt 00:00:13]}
O-O {[%clk 00:19:22]} {[%emt 00:00:10]} 6. Bxf7+ {[%clk 00:19:49]} {[%emt
00:00:08]} Rxf7 {[%clk 00:19:24]} {[%emt 00:00:04]} 7. Nxf7 {[%clk 00:19:51]}
{[%emt 00:00:03]} Kxf7 {[%clk 00:19:23]} {[%emt 00:00:06]} 8. Nd5 {[%clk
00:19:23]} {[%emt 00:00:32]} Nxd5 {[%clk 00:19:16]} {[%emt 00:00:14]} 9. exd5
{[%clk 00:19:27]} {[%emt 00:00:01]} Ne7 {[%clk 00:19:09]} {[%emt 00:00:11]} 10.
c3 {[%clk 00:19:16]} {[%emt 00:00:16]} Bc5 {[%clk 00:18:59]} {[%emt 00:00:15]}
11. b4 {[%clk 00:19:12]} {[%emt 00:00:09]} Bb6 {[%clk 00:19:00]} {[%emt
00:00:04]} 12. c4 {[%clk 00:19:05]} {[%emt 00:00:11]} a6 {[%clk 00:19:02]}
{[%emt 00:00:05]} 13. Bb2 {[%clk 00:18:58]} {[%emt 00:00:12]} d6 {[%clk
00:19:00]} {[%emt 00:00:05]} 14. h3 {[%clk 00:18:52]} {[%emt 00:00:12]} Kg8
{[%clk 00:19:02]} {[%emt 00:00:02]} 15. O-O {[%clk 00:18:46]} {[%emt 00:00:12]}
Ng6 {[%clk 00:18:13]} {[%emt 00:00:53]} 16. Ba3 {[%clk 00:17:13]} {[%emt
00:01:39]} Qg5 {[%clk 00:17:28]} {[%emt 00:00:49]} 17. c5 {[%clk 00:16:51]}
{[%emt 00:00:28]} Bxh3 {[%emt 00:00:45]} 1/2-1/2

[Event "MCR rapid mládeže 2023 U16"]
[Site "Harachov, Czech Republic"]
[Date "2023.09.09"]
[Round "4.1"]
[White "Juhanak, Daniel"]
[Black "Svadlenka, Dominik"]
[Result "1-0"]
[TimeControl "20min+5s/move"]
[WhiteElo "1878"]
[BlackElo "1588"]

1. c4 {[%clk 00:20:08]} {[%emt 00:00:01]} e5 {[%clk 00:20:07]} {[%emt
00:00:04]} 2. Nc3 {[%clk 00:20:08]} {[%emt 00:00:05]} Nf6 {[%clk 00:20:10]}
{[%emt 00:00:02]} 3. Nf3 {[%clk 00:20:09]} {[%emt 00:00:03]} d6 {[%clk
00:20:11]} {[%emt 00:00:04]} 4. e3 {[%clk 00:19:58]} {[%emt 00:00:16]} Be7
{[%clk 00:20:11]} {[%emt 00:00:05]} 5. b3 {[%clk 00:19:32]} {[%emt 00:00:32]}
O-O {[%clk 00:20:13]} {[%emt 00:00:03]} 6. Bb2 {[%clk 00:19:35]} {[%emt
00:00:02]} c6 {[%clk 00:20:16]} {[%emt 00:00:02]} 7. d3 {[%clk 00:18:59]}
{[%emt 00:00:42]} h6 {[%clk 00:20:17]} {[%emt 00:00:03]} 8. Be2 {[%clk
00:19:02]} {[%emt 00:00:03]} Be6 {[%clk 00:20:19]} {[%emt 00:00:03]} 9. O-O
{[%emt 00:00:07]} Nbd7 {[%clk 00:20:19]} {[%emt 00:00:04]} 10. Rc1 {[%clk
00:18:25]} {[%emt 00:00:42]} Rc8 {[%clk 00:19:30]} {[%emt 00:00:53]} 11. d4
{[%clk 00:17:36]} {[%emt 00:00:54]} e4 {[%clk 00:19:04]} {[%emt 00:00:31]} 12.
Nd2 {[%clk 00:17:36]} {[%emt 00:00:05]} d5 {[%clk 00:19:07]} {[%emt 00:00:02]}
13. f3 {[%clk 00:17:26]} {[%emt 00:00:15]} exf3 {[%clk 00:18:59]} {[%emt
00:00:13]} 14. Bxf3 {[%clk 00:17:12]} {[%emt 00:00:18]} dxc4 {[%clk 00:18:46]}
{[%emt 00:00:18]} 15. bxc4 {[%clk 00:16:14]} {[%emt 00:01:04]} Nb6 {[%clk
00:18:33]} {[%emt 00:00:17]} 16. Qe2 {[%clk 00:15:13]} {[%emt 00:01:06]} Qd7
{[%clk 00:17:31]} {[%emt 00:01:07]} 17. Kh1 {[%clk 00:14:21]} {[%emt 00:00:56]}
Rfd8 {[%clk 00:17:09]} {[%emt 00:00:27]} 18. Rfd1 {[%clk 00:11:38]} {[%emt
00:02:48]} Qe8 {[%clk 00:11:45]} {[%emt 00:05:29]} 19. Ncb1 {[%clk 00:08:21]}
{[%emt 00:03:22]} Na4 {[%emt 00:01:33]} 20. Ba1 {[%clk 00:08:12]} {[%emt
00:00:13]} b5 {[%clk 00:09:50]} {[%emt 00:00:33]} 21. e4 {[%clk 00:07:32]}
{[%emt 00:00:45]} bxc4 {[%clk 00:09:29]} {[%emt 00:00:26]} 22. Nxc4 {[%clk
00:07:26]} {[%emt 00:00:10]} Nb6 {[%emt 00:00:47]} 23. Ne5 {[%clk 00:06:54]}
{[%emt 00:00:37]} Bd6 {[%clk 00:05:18]} {[%emt 00:03:35]} 24. Nd3 {[%clk
00:05:24]} {[%emt 00:01:35]} Bb8 {[%clk 00:04:29]} {[%emt 00:00:54]} 25. Nc5
{[%clk 00:05:08]} {[%emt 00:00:21]} Nfd7 {[%clk 00:03:30]} {[%emt 00:01:04]} 26.
Nb7 {[%clk 00:04:57]} {[%emt 00:00:16]} Bf4 {[%clk 00:02:49]} {[%emt 00:00:47]}
27. Rc2 {[%clk 00:04:24]} {[%emt 00:00:38]} Nf6 {[%clk 00:01:55]} {[%emt
00:00:58]} 28. Nxd8 {[%clk 00:04:17]} {[%emt 00:00:12]} Rxd8 {[%clk 00:01:22]}
{[%emt 00:00:38]} 29. Nd2 {[%clk 00:03:55]} {[%emt 00:00:28]} Qe7 {[%clk
00:00:30]} {[%emt 00:00:56]} 30. Nb3 {[%clk 00:03:04]} {[%emt 00:00:57]} 1-0